Workbook

Sheet 封面
A1: 盐边县自然资源和规划局
A2: 2023年部门预算
A3: 2023 年 03 月 01 日

Sheet 1部门收支总表
E1: 表1
B2: 部门收支总表
B3: 部门：盐边县自然资源和规划局 | E3: 金额单位：元
B4: 收 入 | D4: 支 出
B5: 项 目 | C5: 预算数 | D5: 项 目 | E5: 预算数
B6: 一、一般公共预算拨款收入 | C6: 33,104,178.33 | D6: 一、一般公共服务支出
B7: 二、政府性基金预算拨款收入 | C7: 2,082,196.76 | D7: 二、外交支出
B8: 三、国有资本经营预算拨款收入 | D8: 三、国防支出
B9: 四、事业收入 | D9: 四、公共安全支出
B10: 五、事业单位经营收入 | D10: 五、教育支出
B11: 六、其他收入 | D11: 六、科学技术支出
D12: 七、文化旅游体育与传媒支出
D13: 八、社会保障和就业支出 | E13: 887,540.96
D14: 九、社会保险基金支出
D15: 十、卫生健康支出 | E15: 875,033.43
D16: 十一、节能环保支出
D17: 十二、城乡社区支出 | E17: 2,082,196.76
D18: 十三、农林水支出 | E18: 963,416.00
D19: 十四、交通运输支出
D20: 十五、资源勘探工业信息等支出
D21: 十六、商业服务业等支出
D22: 十七、金融支出
D23: 十八、援助其他地区支出
D24: 十九、自然资源海洋气象等支出 | E24: 16,298,587.14
D25: 二十、住房保障支出 | E25: 717,449.80
D26: 二十一、粮油物资储备支出
D27: 二十二、国有资本经营预算支出
D28: 二十三、灾害防治及应急管理支出 | E28: 13,362,151.00
D29: 二十四、预备费
D30: 二十五、其他支出
D31: 二十六、转移性支出
D32: 二十七、债务还本支出
D33: 二十八、债务付息支出
D34: 二十九、债务发行费用支出
D35: 三十、抗疫特别国债安排的支出
B36: 本 年 收 入 合 计 | C36: =SUM(C6:C35) -> 35,186,375.09 | D36: 本 年 支 出 合 计 | E36: =SUM(E6:E35) -> 35,186,375.09
B37: 七、用事业基金弥补收支差额 | D37: 三十一、事业单位结余分配
B38: 八、上年结转 | D38: 其中：转入事业基金
D39: 三十二、结转下年
B40: 收 入 总 计 | C40: =C36+C37+C38 -> 35,186,375.09 | D40: 支 出 总 计 | E40: =E36+E37+E39 -> 35,186,375.09

Sheet 1-1部门收入总表
N1: 表1-1
B2: 部门收入总表
B3: 部门：盐边县自然资源和规划局 | N3: 金额单位：元
B4: 项 目 | D4: 合计 | E4: 上年结转 | F4: 一般公共预算拨款收入 | G4: 政府性基金预算拨款收入 | H4: 国有资本经营预算拨款收入 | I4: 事业收入 | J4: 事业单位经营收入 | K4: 其他收入 | L4: 上级补助收入 | M4: 附属单位上缴收入 | N4: 用事业基金弥补收支差额
B5: 单位代码 | C5: 单位名称（科目）
C7: 合 计 | D7: =SUM(F7:G7) -> 35,186,375.09 | F7: 33,104,178.33 | G7: 2,082,196.76
B8: 408001 | C8: 盐边县自然资源和规划局 | D8: =SUM(F8:G8) -> 35,186,375.09 | F8: 33,104,178.33 | G8: 2,082,196.76

Sheet 1-2部门支出总表
K1: 表1-2
B2: 部门支出总表
B3: 部门：盐边县自然资源和规划局 | K3: 金额单位：元
B4: 项 目 | G4: 合计 | H4: 基本支出 | I4: 项目支出 | J4: 上缴上级支出 | K4: 对附属单位补助支出
B5: 科目编码 | E5: 单位代码 | F5: 单位名称（科目）
B6: 类 | C6: 款 | D6: 项
F7: 合 计 | G7: =SUM(G9:G30) -> 35,186,375.09 | H7: =SUM(H9:H30) -> 8,919,460.33 | I7: 26,266,914.76
E8: 408001 | F8: 盐边县自然资源和规划局
B9: 208 | C9: 05 | D9: 01 | E9: 408001 | F9: 行政单位离退休 | G9: =SUM(H9:K9) -> 17,000.00 | H9: 17,000.00
B10: 208 | C10: 05 | D10: 02 | E10: 408001 | F10: 事业单位离退休 | G10: =SUM(H10:K10) -> 9,644.00 | H10: 9,644.00
B11: 208 | C11: 05 | D11: 05 | E11: 408001 | F11: 机关事业单位基本养老保险缴费支出 | G11: 860,896.96 | H11: 860,896.96
B12: 210 | C12: 11 | D12: 01 | E12: 408001 | F12: 行政单位医疗 | G12: 197,052.80 | H12: 197,052.80
B13: 210 | C13: 11 | D13: 02 | E13: 408001 | F13: 事业单位医疗 | G13: 280,500.30 | H13: 280,500.30
B14: 210 | C14: 11 | D14: 03 | E14: 408001 | F14: 公务员医疗补助 | G14: 35,200.00 | H14: 35,200.00
B15: 210 | C15: 11 | D15: 99 | E15: 408001 | F15: 其他行政事业单位医疗支出 | G15: 362,280.33 | H15: 362,280.33
B16: 212 | C16: 08 | D16: 02 | E16: 408001 | F16: 土地开发支出 | G16: 978,000.00 | I16: 978,000.00
B17: 212 | C17: 08 | D17: 99 | E17: 408001 | F17: 其他国有土地使用权出让收入安排的支出 | G17: 1,104,196.76 | I17: 1,104,196.76
B18: 213 | C18: 99 | D18: 99 | E18: 408001 | F18: 其他农林水支出 | G18: 963,416.00 | I18: 963,416.00
B19: 220 | C19: 01 | D19: 01 | E19: 408001 | F19: 行政运行 | G19: 2,641,888.12 | H19: 2,641,888.12
B20: 220 | C20: 01 | D20: 02 | E20: 408001 | F20: 一般行政管理事务 | G20: 444,175.00 | I20: 444,175.00
B21: 220 | C21: 01 | D21: 04 | E21: 408001 | F21: 自然资源规划及管理 | G21: 4,398,000.00 | I21: 4,398,000.00
B22: 220 | C22: 01 | D22: 06 | E22: 408001 | F22: 自然资源利用与保护 | G22: 599,520.00 | I22: 599,520.00
B23: 220 | C23: 01 | D23: 09 | E23: 408001 | F23: 自然资源调查与确权登记 | G23: 990,000.00 | I23: 990,000.00
B24: 220 | C24: 01 | D24: 13 | E24: 408001 | F24: 地质矿产资源与环境调查 | G24: 396,000.00 | I24: 396,000.00
B25: 220 | C25: 01 | D25: 14 | E25: 408001 | F25: 地质勘查与矿产资源管理 | G25: 2,391,400.00 | I25: 2,391,400.00
B26: 220 | C26: 01 | D26: 50 | E26: 408001 | F26: 事业运行 | G26: 3,797,548.02 | H26: 3,797,548.02
B27: 220 | C27: 01 | D27: 99 | E27: 408001 | F27: 其他自然资源事务支出 | G27: 640,056.00 | I27: 640,056.00
B28: 221 | C28: 02 | D28: 01 | E28: 408001 | F28: 住房公积金 | G28: 717,449.80 | H28: 717,449.80
B29: 224 | C29: 06 | D29: 01 | E29: 408001 | F29: 地质灾害防治 | G29: 8,562,151.00 | I29: 8,562,151.00
B30: 224 | C30: 06 | D30: 99 | E30: 408001 | F30: 其他自然灾害防治支出 | G30: 4,800,000.00 | I30: 4,800,000.00

Sheet 2财政拨款收支预算总表
I1: 表2
B2: 财政拨款收支预算总表
B3: 部门：盐边县自然资源和规划局 | I3: 金额单位：元
B4: 收 入 | D4: 支 出
B5: 项 目 | C5: 预算数 | D5: 项 目 | E5: 合计 | F5: 一般公共预算 | G5: 政府性基金预算 | H5: 国有资本经营预算 | I5: 上年财政拨款资金结转
B6: 一、本年收入 | C6: =SUM(C7:C9) -> 35,186,375.09 | D6: 一、本年支出 | E6: =SUM(E7:E33) -> 35,186,375.09 | F6: =SUM(F7:F33) -> 33,104,178.33 | G6: 2,082,196.76
B7: 一般公共预算拨款收入 | C7: 33,104,178.33 | D7: 一般公共服务支出
B8: 政府性基金预算拨款收入 | C8: 2,082,196.76 | D8: 外交支出
B9: 国有资本经营预算拨款收入 | D9: 国防支出
B10: 二、上年结转 | D10: 公共安全支出
B11: 一般公共预算拨款收入 | D11: 教育支出
B12: 政府性基金预算拨款收入 | D12: 科学技术支出
B13: 国有资本经营预算拨款收入 | D13: 文化旅游体育与传媒支出
D14: 社会保障和就业支出 | E14: 887,540.96 | F14: 887,540.96
D15: 社会保险基金支出
D16: 卫生健康支出 | E16: 875,033.43 | F16: 875,033.43
D17: 节能环保支出
D18: 城乡社区支出 | E18: 2,082,196.76 | G18: 2,082,196.76
D19: 农林水支出 | E19: 963,416.00 | F19: 963,416.00
D20: 交通运输支出
D21: 资源勘探工业信息等支出
D22: 商业服务业等支出
D23: 金融支出
D24: 援助其他地区支出
D25: 自然资源海洋气象等支出 | E25: 16,298,587.14 | F25: 16,298,587.14
D26: 住房保障支出 | E26: 717,449.80 | F26: 717,449.80
D27: 粮油物资储备支出
D28: 国有资本经营预算支出
D29: 灾害防治及应急管理支出 | E29: 13,362,151.00 | F29: 13,362,151.00
D30: 其他支出
D31: 债务付息支出
D32: 债务发行费用支出
D33: 抗疫特别国债安排的支出

Sheet 2-1财政拨款支出预算表
AP1: 表2-1
B2: 财政拨款支出预算表（部门经济分类科目）
B3: 部门：盐边县自然资源和规划局 | AO3: 金额单位：元
B4: 项 目 | F4: 总计 | G4: 县级当年财政拨款安排 | Q4: 上级提前通知专项转移支付等 | AA4: 上年结转安排
B5: 科目编码 | D5: 单位代码 | E5: 单位名称（科目） | G5: 合计 | H5: 一般公共预算拨款 | K5: 政府性基金安排 | N5: 国有资本经营预算安排 | Q5: 合计 | R5: 一般公共预算拨款 | U5: 政府性基金安排 | X5: 国有资本经营预算安排 | AA5: 合计 | AB5: 一般公共预算拨款 | AE5: 政府性基金安排 | AH5: 国有资本经营预算安排 | AK5: 上年应返还额度结转 | AN5: 上年财政拨款资金结转
B6: 类 | C6: 款 | H6: 小计 | I6: 基本支出 | J6: 项目支出 | K6: 小计 | L6: 基本支出 | M6: 项目支出 | N6: 小计 | O6: 基本支出 | P6: 项目支出 | R6: 小计 | S6: 基本支出 | T6: 项目支出 | U6: 小计 | V6: 基本支出 | W6: 项目支出 | X6: 小计 | Y6: 基本支出 | Z6: 项目支出 | AB6: 小计 | AC6: 基本支出 | AD6: 项目支出 | AE6: 小计 | AF6: 基本支出 | AG6: 项目支出 | AH6: 小计 | AI6: 基本支出 | AJ6: 项目支出 | AK6: 小计 | AL6: 基本支出 | AM6: 项目支出 | AN6: 小计 | AO6: 基本支出 | AP6: 项目支出
E7: 合 计 | F7: =SUM(F8:F36) -> 35,186,375.09 | G7: 35,186,375.09 | H7: 33,104,178.33 | I7: 8,958,560.33 | J7: 24,145,618.00 | K7: 2,082,196.76 | M7: =SUM(M8:M36) -> 2,082,196.76
B8: 301 | C8: 01 | D8: 408001 | E8: 基本工资 | F8: =G8 -> 2,026,332.00 | G8: =H8+K8+N8 -> 2,026,332.00 | H8: =SUM(I8:J8) -> 2,026,332.00 | I8: 2,026,332.00
B9: 301 | C9: 02 | D9: 408001 | E9: 津贴补贴 | F9: =G9 -> 1,039,536.00 | G9: =H9+K9+N9 -> 1,039,536.00 | H9: =SUM(I9:J9) -> 1,039,536.00 | I9: 1,039,536.00
B10: 301 | C10: 03 | D10: 408001 | E10: 奖金 | F10: 647,338.00 | G10: 647,338.00 | H10: =SUM(I10:J10) -> 647,338.00 | I10: 647,338.00
B11: 301 | C11: 07 | D11: 408001 | E11: 绩效工资 | F11: 1,888,200.00 | G11: 1,888,200.00 | H11: 1,888,200.00 | I11: 1,888,200.00
B12: 301 | C12: 08 | D12: 408001 | E12: 机关事业单位基本养老保险缴费 | F12: 860,896.96 | G12: 860,896.96 | H12: 860,896.96 | I12: 860,896.96
B13: 301 | C13: 10 | D13: 408001 | E13: 职工基本医疗保险缴费 | F13: 477,553.10 | G13: 477,553.10 | H13: 477,553.10 | I13: 477,553.10
B14: 301 | C14: 11 | D14: 408001 | E14: 公务员医疗补助缴费 | F14: 263,279.53 | G14: 263,279.53 | H14: 263,279.53 | I14: 263,279.53
B15: 301 | C15: 12 | D15: 408001 | E15: 其他社会保障缴费 | F15: 40,141.21 | G15: 40,141.21 | H15: 40,141.21 | I15: 40,141.21
B16: 301 | C16: 13 | D16: 408001 | E16: 住房公积金 | F16: 717,449.80 | G16: 717,449.80 | H16: 717,449.80 | I16: 717,449.80
B17: 301 | C17: 14 | D17: 408001 | E17: 医疗费 | F17: 22,400.00 | G17: 22,400.00 | H17: 22,400.00 | I17: 22,400.00
B18: 301 | C18: 99 | D18: 408001 | E18: 其他工资福利支出 | F18: 112,800.00 | G18: 112,800.00 | H18: 112,800.00 | I18: 112,800.00
B19: 302 | C19: 01 | D19: 408001 | E19: 办公费 | F19: 70,500.00 | G19: 70,500.00 | H19: 70,500.00 | I19: 70,500.00
B20: 302 | C20: 05 | D20: 408001 | E20: 水费 | F20: 16,450.00 | G20: 16,450.00 | H20: 16,450.00 | I20: 16,450.00
B21: 302 | C21: 06 | D21: 408001 | E21: 电费 | F21: 21,150.00 | G21: 21,150.00 | H21: 21,150.00 | I21: 21,150.00
B22: 302 | C22: 07 | D22: 408001 | E22: 邮电费 | F22: =G22 -> 18,800.00 | G22: =H22+K22+N22 -> 18,800.00 | H22: 18,800.00 | I22: 18,800.00
B23: 302 | C23: 11 | D23: 408001 | E23: 差旅费 | F23: 141,000.00 | G23: 141,000.00 | H23: 141,000.00 | I23: 141,000.00
B24: 302 | C24: 13 | D24: 408001 | E24: 维修（护）费 | F24: 1,200.00 | G24: 1,200.00 | H24: 1,200.00 | I24: 1,200.00
B25: 302 | C25: 17 | D25: 408001 | E25: 公务接待费 | F25: 6,500.00 | G25: 6,500.00 | H25: 6,500.00 | I25: 6,500.00
B26: 302 | C26: 26 | D26: 408001 | E26: 劳务费 | F26: 10,000.00 | G26: 10,000.00 | H26: 10,000.00 | I26: 10,000.00
B27: 302 | C27: 27 | D27: 408001 | E27: 委托业务费 | F27: 4,126,936.00 | G27: 4,126,936.00 | H27: 3,148,936.00 | J27: 3,148,936.00 | K27: 978,000.00 | M27: 978,000.00
B28: 302 | C28: 28 | D28: 408001 | E28: 工会经费 | F28: 117,318.97 | G28: 117,318.97 | H28: 117,318.97 | I28: 117,318.97
B29: 302 | C29: 29 | D29: 408001 | E29: 福利费 | F29: 60,789.96 | G29: 60,789.96 | H29: 60,789.96 | I29: 60,789.96
B30: 302 | C30: 31 | D30: 408001 | E30: 公务用车运行维护费 | F30: 8,000.00 | G30: 8,000.00 | H30: 8,000.00 | I30: 8,000.00
B31: 302 | C31: 39 | D31: 408001 | E31: 其他交通费用 | F31: 166,600.00 | G31: 166,600.00 | H31: 166,600.00 | I31: 166,600.00
B32: 302 | C32: 99 | D32: 408001 | E32: 其他商品和服务支出 | F32: 14,619,462.76 | G32: 14,619,462.76 | H32: 13,515,266.00 | I32: 110,100.00 | J32: 13,405,166.00 | K32: 1,104,196.76 | M32: 1,104,196.76
B33: 303 | C33: 05 | D33: 408001 | E33: 生活补助 | F33: 1,644.00 | G33: 1,644.00 | H33: 1,644.00 | I33: 1,644.00
B34: 303 | C34: 07 | D34: 408001 | E34: 医疗费补助 | F34: 111,800.80 | G34: 111,800.80 | H34: 111,800.80 | I34: 111,800.80
B35: 303 | C35: 09 | D35: 408001 | E35: 奖励金 | F35: 780.00 | G35: 780.00 | H35: 780.00 | I35: 780.00
B36: 310 | C36: 99 | D36: 408001 | E36: 其他资本性支出 | F36: 7,591,516.00 | G36: 7,591,516.00 | H36: 7,591,516.00 | J36: 7,591,516.00

Sheet 3一般公共预算支出预算表
G1: 表3
B2: 一般公共预算支出预算表
B3: 部门： 盐边县自然资源和规划局 | I3: 金额单位：元
B4: 项 目 | G4: 合计 | H4: 当年财政拨款安排 | I4: 上年结转安排
B5: 科目编码 | E5: 单位代码 | F5: 单位名称（科目）
B6: 类 | C6: 款 | D6: 项
F7: 合 计 | G7: =SUM(G9:G28) -> 33,104,178.33 | H7: =SUM(H9:H28) -> 33,104,178.33
E8: 408001 | F8: 盐边县自然资源和规划局
B9: 208 | C9: 05 | D9: 01 | E9: 408001 | F9: 行政单位离退休 | G9: 17,000.00 | H9: 17,000.00
B10: 208 | C10: 05 | D10: 02 | E10: 408001 | F10: 事业单位离退休 | G10: 9,644.00 | H10: 9,644.00
B11: 208 | C11: 05 | D11: 05 | E11: 408001 | F11: 机关事业单位基本养老保险缴费支出 | G11: 860,896.96 | H11: 860,896.96
B12: 210 | C12: 11 | D12: 01 | E12: 408001 | F12: 行政单位医疗 | G12: 197,052.80 | H12: 197,052.80
B13: 210 | C13: 11 | D13: 02 | E13: 408001 | F13: 事业单位医疗 | G13: 280,500.30 | H13: 280,500.30
B14: 210 | C14: 11 | D14: 03 | E14: 408001 | F14: 公务员医疗补助 | G14: 35,200.00 | H14: 35,200.00
B15: 210 | C15: 11 | D15: 99 | E15: 408001 | F15: 其他行政事业单位医疗支出 | G15: 362,280.33 | H15: 362,280.33
B16: 213 | C16: 99 | D16: 99 | E16: 408001 | F16: 其他农林水支出 | G16: 963,416.00 | H16: 963,416.00
B17: 220 | C17: 01 | D17: 01 | E17: 408001 | F17: 行政运行 | G17: 2,641,888.12 | H17: 2,641,888.12
B18: 220 | C18: 01 | D18: 02 | E18: 408001 | F18: 一般行政管理事务 | G18: 444,175.00 | H18: 444,175.00
B19: 220 | C19: 01 | D19: 04 | E19: 408001 | F19: 自然资源规划及管理 | G19: 4,398,000.00 | H19: 4,398,000.00
B20: 220 | C20: 01 | D20: 06 | E20: 408001 | F20: 自然资源利用与保护 | G20: 599,520.00 | H20: 599,520.00
B21: 220 | C21: 01 | D21: 09 | E21: 408001 | F21: 自然资源调查与确权登记 | G21: 990,000.00 | H21: 990,000.00
B22: 220 | C22: 01 | D22: 13 | E22: 408001 | F22: 地质矿产资源与环境调查 | G22: 396,000.00 | H22: 396,000.00
B23: 220 | C23: 01 | D23: 14 | E23: 408001 | F23: 地质勘查与矿产资源管理 | G23: 2,391,400.00 | H23: 2,391,400.00
B24: 220 | C24: 01 | D24: 50 | E24: 408001 | F24: 事业运行 | G24: 3,797,548.02 | H24: 3,797,548.02
B25: 220 | C25: 01 | D25: 99 | E25: 408001 | F25: 其他自然资源事务支出 | G25: 640,056.00 | H25: 640,056.00
B26: 221 | C26: 02 | D26: 01 | E26: 408001 | F26: 住房公积金 | G26: 717,449.80 | H26: 717,449.80
B27: 224 | C27: 06 | D27: 01 | E27: 408001 | F27: 地质灾害防治 | G27: 8,562,151.00 | H27: 8,562,151.00
B28: 224 | C28: 06 | D28: 99 | E28: 408001 | F28: 其他自然灾害防治支出 | G28: 4,800,000.00 | H28: 4,800,000.00

Sheet 3-1一般公共预算基本支出预算表
H1: 表3-1
B2: 一般公共预算基本支出预算表
B3: 部门：盐边县自然资源和规划局 | H3: 金额单位：元
B4: 项 目 | F4: 基本支出
B5: 科目编码 | D5: 单位代码 | E5: 单位名称（科目） | F5: 合计 | G5: 人员经费 | H5: 公用经费
B6: 类 | C6: 款
E7: 合 计 | F7: =SUM(F9:F35) -> 8,919,460.33 | G7: =SUM(G9:G35) -> 8,210,151.40 | H7: =SUM(H9:H35) -> 709,308.93
D8: 单位编码 | E8: 政府经济分类科目名称
B9: 301 | C9: 01 | D9: 408001 | E9: 基本工资 | F9: =SUM(G9:H9) -> 2,026,332.00 | G9: 2,026,332.00
B10: 301 | C10: 02 | D10: 408001 | E10: 津贴补贴 | F10: =SUM(G10:H10) -> 1,039,536.00 | G10: 1,039,536.00
B11: 301 | C11: 03 | D11: 408001 | E11: 奖金 | F11: 647,338.00 | G11: 647,338.00
B12: 301 | C12: 07 | D12: 408001 | E12: 绩效工资 | F12: 1,888,200.00 | G12: 1,888,200.00
B13: 301 | C13: 08 | D13: 408001 | E13: 机关事业单位基本养老保险缴费 | F13: 860,896.96 | G13: 860,896.96
B14: 301 | C14: 10 | D14: 408001 | E14: 职工基本医疗保险缴费 | F14: 477,553.10 | G14: 477,553.10
B15: 301 | C15: 11 | D15: 408001 | E15: 公务员医疗补助缴费 | F15: 263,279.53 | G15: 263,279.53
B16: 301 | C16: 12 | D16: 408001 | E16: 其他社会保障缴费 | F16: 40,141.21 | G16: 40,141.21
B17: 301 | C17: 13 | D17: 408001 | E17: 住房公积金 | F17: 717,449.80 | G17: 717,449.80
B18: 301 | C18: 14 | D18: 408001 | E18: 医疗费 | F18: 22,400.00 | G18: 22,400.00
B19: 301 | C19: 99 | D19: 408001 | E19: 其他工资福利支出 | F19: 112,800.00 | G19: 112,800.00
B20: 302 | C20: 01 | D20: 408001 | E20: 办公费 | F20: 70,500.00 | H20: 70,500.00
B21: 302 | C21: 05 | D21: 408001 | E21: 水费 | F21: 16,450.00 | H21: 16,450.00
B22: 302 | C22: 06 | D22: 408001 | E22: 电费 | F22: 21,150.00 | H22: 21,150.00
B23: 302 | C23: 07 | D23: 408001 | E23: 邮电费 | F23: 18,800.00 | H23: 18,800.00
B24: 302 | C24: 11 | D24: 408001 | E24: 差旅费 | F24: 141,000.00 | H24: 141,000.00
B25: 302 | C25: 13 | D25: 408001 | E25: 维修（护）费 | F25: 1,200.00 | H25: 1,200.00
B26: 302 | C26: 17 | D26: 408001 | E26: 公务接待费 | F26: 6,500.00 | H26: 6,500.00
B27: 302 | C27: 26 | D27: 408001 | E27: 劳务费 | F27: 10,000.00 | H27: 10,000.00
B28: 302 | C28: 28 | D28: 408001 | E28: 工会经费 | F28: 117,318.97 | H28: 117,318.97
B29: 302 | C29: 29 | D29: 408001 | E29: 福利费 | F29: 60,789.96 | H29: 60,789.96
B30: 302 | C30: 31 | D30: 408001 | E30: 公务用车运行维护费 | F30: 8,000.00 | H30: 8,000.00
B31: 302 | C31: 39 | D31: 408001 | E31: 其他交通费用 | F31: 166,600.00 | H31: 166,600.00
B32: 302 | C32: 99 | D32: 408001 | E32: 其他商品和服务支出 | F32: 71,000.00 | H32: 71,000.00
B33: 303 | C33: 05 | D33: 408001 | E33: 生活补助 | F33: 1,644.00 | G33: 1,644.00
B34: 303 | C34: 07 | D34: 408001 | E34: 医疗费补助 | F34: 111,800.80 | G34: 111,800.80
B35: 303 | C35: 09 | D35: 408001 | E35: 奖励金 | F35: 780.00 | G35: 780.00

Sheet 3-2一般公共预算项目支出预算表
G1: 表3-2
B2: 一般公共预算项目支出预算表
B3: 部门：盐边县自然资源和规划局 | G3: 金额单位：元
B4: 科目编码 | E4: 单位代码 | F4: 单位名称（科目） | G4: 金额
B5: 类 | C5: 款 | D5: 项
F6: 合 计 | G6: =SUM(G8:G17) -> 24,184,718.00
E7: 408001 | F7: 盐边县自然资源和规划局
B8: 213 | C8: 99 | D8: 99 | E8: 408001 | F8: 其他农林水支出 | G8: 963,416.00
B9: 220 | C9: 01 | D9: 02 | E9: 408001 | F9: 一般行政管理事务 | G9: 444,175.00
B10: 220 | C10: 01 | D10: 04 | E10: 408001 | F10: 自然资源规划及管理 | G10: 4,398,000.00
B11: 220 | C11: 01 | D11: 06 | E11: 408001 | F11: 自然资源利用与保护 | G11: 599,520.00
B12: 220 | C12: 01 | D12: 09 | E12: 408001 | F12: 自然资源调查与确权登记 | G12: 990,000.00
B13: 220 | C13: 01 | D13: 13 | E13: 408001 | F13: 地质矿产资源与环境调查 | G13: 396,000.00
B14: 220 | C14: 01 | D14: 14 | E14: 408001 | F14: 地质勘查与矿产资源管理 | G14: 2,391,400.00
B15: 220 | C15: 01 | D15: 99 | E15: 408001 | F15: 其他自然资源事务支出 | G15: 640,056.00
B16: 224 | C16: 06 | D16: 01 | E16: 408001 | F16: 地质灾害防治 | G16: 8,562,151.00
B17: 224 | C17: 06 | D17: 99 | E17: 408001 | F17: 其他自然灾害防治支出 | G17: 4,800,000.00

Sheet 3-3一般公共预算“三公”经费支出预算表
I1: 表3-3
B2: 一般公共预算“三公”经费支出预算表
B3: 部门：盐边县自然资源和规划局 | I3: 金额单位：元
B4: 单位编码 | C4: 单位名称（科目） | D4: 当年财政拨款预算安排
D5: 合计 | E5: 因公出国（境）费用 | F5: 公务用车购置及运行费 | I5: 公务接待费
F6: 小计 | G6: 公务用车购置费 | H6: 公务用车运行费
C7: 合 计 | D7: =SUM(D8:D9) -> 14,500.00 | F7: =SUM(F8:F9) -> 14,500.00 | H7: =SUM(H8:H9) -> 8,000.00 | I7: =SUM(I8:I9) -> 6,500.00
B8: 408001 | C8: 盐边县自然资源和规划局 | D8: =SUM(E8:F8) -> 14,500.00 | F8: =SUM(G8:I8) -> 14,500.00 | H8: 8,000.00 | I8: 6,500.00

Sheet 4政府性基金支出预算表
I1: 表4
B2: 政府性基金支出预算表
B3: 部门：盐边县自然资源和规划局 | I3: 金额单位：元
B4: 项 目 | G4: 本年政府性基金预算支出
B5: 科目编码 | E5: 单位代码 | F5: 单位名称（科目） | G5: 合计 | H5: 基本支出 | I5: 项目支出
B6: 类 | C6: 款 | D6: 项
F7: 合 计 | G7: =SUM(G8:G9) -> 2,082,196.76 | I7: =SUM(I8:I9) -> 2,082,196.76
B8: 212 | C8: 08 | D8: 02 | E8: 408001 | F8: 土地开发支出 | G8: =SUM(H8:I8) -> 978,000.00 | I8: 978,000.00
B9: 212 | C9: 08 | D9: 99 | E9: 408001 | F9: 其他国有土地使用权出让收入安排的支出 | G9: =SUM(H9:I9) -> 1,104,196.76 | I9: 1,104,196.76

Sheet 4-1政府性基金预算“三公”经费支出预算表
I1: 表4-1
B2: 政府性基金预算“三公”经费支出预算表
B3: 部门：盐边县自然资源和规划局 | I3: 金额单位：元
B4: 单位编码 | C4: 单位名称（科目） | D4: 当年财政拨款预算安排
D5: 合计 | E5: 因公出国（境）费用 | F5: 公务用车购置及运行费 | I5: 公务接待费
F6: 小计 | G6: 公务用车购置费 | H6: 公务用车运行费
C7: 合 计 | D7: 0.00
B8: 408001 | C8: 盐边县自然资源和规划局 | D8: 0.00
D9: 此表无数据

Sheet 5国有资本经营预算支出预算表
I1: 表5
B2: 国有资本经营预算支出预算表
B3: 部门：盐边县自然资源和规划局 | I3: 金额单位：元
B4: 项 目 | G4: 本年国有资本经营预算支出
B5: 科目编码 | E5: 单位代码 | F5: 单位名称（科目） | G5: 合计 | H5: 基本支出 | I5: 项目支出
B6: 类 | C6: 款 | D6: 项
F7: 合 计 | G7: 0.00
E8: 408001 | F8: 此表无数据 | G8: 0.00

Sheet 6-1部门预算项目支出绩效目标表—2023年自然资源和规划管理
E1: 表6-1
A2: 部门预算项目支出绩效目标表
D3: （2023年度）
A4: 项目名称 | D4: 2023年自然资源和规划管理工作经费
A5: 预算单位 | D5: 盐边县自然资源和规划局
A6: 项目资金(万元) | D6: 年度资金总额： | E6: 400.00
D7: 其中：财政拨款 | E7: 400.00
D8: 其他资金 | E8: 0.00
A9: 总体目标 | B9: 年度目标
B10: 完成2023年自然资源和规划管理工作目标任务，同时为各项专项工作提供有力的基础保障。
A11: 绩效指标 | B11: 一级指标 | C11: 二级指标 | D11: 三级指标 | E11: 指标值（包含数字及文字描述）
B12: 产出指标 | C12: 数量指标 | D12: 地质灾害汛期培训 | E12: 分南、北片区每年度开展地质灾害汛期应急安全知识宣传培训、实地演练各1次
D13: 拟出让矿权 | E13: 4宗
D14: 自然资源各项网络专线数量 | E14: 3条
D15: 地质灾害汛期巡查 | E15: 3次
C16: 质量指标 | D16: 各项工作开展及完成目标任务情况 | E16: 较好
C17: 时效指标 | D17: 预算费用跨度 | E17: 2023年1月-12月
B18: 效益指标 | C18: 经济效益指标 | D18: 减少地质灾害导致的财产、人员损伤，提高地方财政收入情况 | E18: 较好
B19: 成本指标 | C19: 经济成本指标 | D19: 自然资源和规划管理相关费用支出，含地灾防治、资源出让、用途管制、空间规划、耕地保护、土地开发、自然资源执法、编外人员劳务费用等 | E19: 400万元
B20: 满意度指标 | C20: 服务对象满意度指标 | D20: 服务对象满意度 | E20: ≧95

Sheet 6-2部门预算项目支出绩效目标表—地质灾害防治特种车辆购置资金
E1: 表6-2
A2: 部门预算项目支出绩效目标表
D3: （2023年度）
A4: 项目名称 | D4: 地质灾害防治特种车辆购置资金
A5: 预算单位 | D5: 盐边县自然资源和规划局
A6: 项目资金(万元) | D6: 年度资金总额： | E6: 480.00
D7: 其中：财政拨款 | E7: 480.00
D8: 其他资金 | E8: 0.00
A9: 总体目标 | B9: 年度目标
B10: 有效提升地质灾害综合防治应急响应能力。
A11: 绩效指标 | B11: 一级指标 | C11: 二级指标 | D11: 三级指标 | E11: 指标值（包含数字及文字描述）
B12: 产出指标 | C12: 数量指标 | D12: 购置车辆数 | E12: 16台
C13: 质量指标 | D13: 达到预定车辆参数情况 | E13: ≥98%
C14: 时效指标 | D14: 完成时限 | E14: 按计划完成采购
B15: 效益指标 | C15: 可持续影响指标 | D15: 有效提升地质灾害应急响应能力 | E15: 良好
B16: 成本指标 | C16: 经济成本指标 | D16: 单车采购成本 | E16: ≤40万元
B17: 满意度指标 | C17: 服务对象满意度指标 | D17: 服务对象满意度 | E17: ≧95

Sheet 6-3部门预算项目支出绩效目标表—生态修复规划编制服务项目
E1: 表6-3
A2: 部门预算项目支出绩效目标表
D3: （2023年度）
A4: 项目名称 | D4: 生态修复规划编制服务项目
A5: 预算单位 | D5: 盐边县自然资源和规划局
A6: 项目资金(万元) | D6: 年度资金总额： | E6: 30.00
D7: 其中：财政拨款 | E7: 30.00
D8: 其他资金 | E8: 0.00
A9: 总体目标 | B9: 年度目标
B10: 通过项目验收，完成目标任务，顺利移交乡镇
A11: 绩效指标 | B11: 一级指标 | C11: 二级 指标 | D11: 三级指标 | E11: 指标值（包含数字及文字描述）
B12: 产出指标 | C12: 数量 指标 | D12: 项目数 | E12: 30个
C13: 质量 指标 | D13: 通过验收 | E13: 好
C14: 时效 指标 | D14: 完成时限 | E14: 1年
B15: 效益指标 | C15: 生态效益指标 | D15: 改善地方地质灾害风险的情况 | E15: 好
B16: 成本指标 | C16: 经济成本指标 | D16: 项目建设费 | E16: 110.42万元
B17: 满意度指标 | C17: 服务对象满意度指标 | D17: 群众满意度 | E17: ≥95%

Sheet 6-4部门预算项目支出绩效目标表—2022年底未支付地质灾害防
E1: 表6-4
A2: 部门预算项目支出绩效目标表
D3: （2023年度）
A4: 项目名称 | D4: 2022年底未支付地质灾害防治经费
A5: 预算单位 | D5: 盐边县自然资源和规划局
A6: 项目资金(万元) | D6: 年度资金总额： | E6: 4.80
D7: 其中：财政拨款 | E7: 4.80
D8: 其他资金 | E8: 0.00
A9: 总体目标 | B9: 年度目标
B10: 确保2022年度已产生各项费用顺利支付，如约履行合同约定事项。
A11: 绩效指标 | B11: 一级指标 | C11: 二级 指标 | D11: 三级指标 | E11: 指标值（包含数字及文字描述）
B12: 产出指标 | C12: 数量 指标 | D12: 汛期巡查 | E12: ≥3次
C13: 质量 指标 | D13: 提升地质灾害综合治理能力情况 | E13: 较好
C14: 时效 指标 | D14: 费用跨度 | E14: 1年
B15: 效益指标 | C15: 可持续发展指标 | D15: 有效防控我县地灾风险情况 | E15: 较好
B16: 成本指标 | C16: 经济成本指标 | D16: 技术服务费 | E16: 4.8万元
B17: 满意度指标 | C17: 服务对象满意度指标 | D17: 群众满意度 | E17: ≥95%

Sheet 6-5部门预算项目支出绩效目标表—2021年以前地质灾害综合治
E1: 表6-5
A2: 部门预算项目支出绩效目标表
D3: （2023年度）
A4: 项目名称 | D4: 2021年以前地质灾害综合治理项目资金
A5: 预算单位 | D5: 盐边县自然资源和规划局
A6: 项目资金(万元) | D6: 年度资金总额： | E6: 110.42
D7: 其中：财政拨款 | E7: 110.42
D8: 其他资金 | E8: 0.00
A9: 总体目标 | B9: 年度目标
B10: 通过项目验收，完成目标任务，顺利移交乡镇
A11: 绩效指标 | B11: 一级指标 | C11: 二级 指标 | D11: 三级指标 | E11: 指标值（包含数字及文字描述）
B12: 产出指标 | C12: 数量 指标 | D12: 项目数 | E12: 30个
C13: 质量 指标 | D13: 通过验收 | E13: 好
C14: 时效 指标 | D14: 完成时限 | E14: 1年
B15: 效益指标 | C15: 生态效益指标 | D15: 改善地方地质灾害风险的情况 | E15: 好
B16: 成本指标 | C16: 经济成本指标 | D16: 项目建设费 | E16: 110.42万元
B17: 满意度指标 | C17: 服务对象满意度指标 | D17: 群众满意度 | E17: ≥95%

Sheet 6-6部门预算项目支出绩效目标表—2022年自然资源执法工作经
E1: 表6-6
A2: 部门预算项目支出绩效目标表
D3: （2023年度）
A4: 项目名称 | D4: 2022年自然资源执法工作经费
A5: 预算单位 | D5: 盐边县自然资源和规划局
A6: 项目资金(万元) | D6: 年度资金总额： | E6: 44.42
D7: 其中：财政拨款 | E7: 44.42
D8: 其他资金 | E8: 0.00
A9: 总体目标 | B9: 年度目标
B10: 确保国有资源资产完整，避免流失，确保群众合法利益得到保障，有效打击私挖盗采行为及违法、占地采矿等行为促进地方经济发展
A11: 绩效指标 | B11: 一级指标 | C11: 二级 指标 | D11: 三级指标 | E11: 指标值（包含数字及文字描述）
B12: 产出指标 | C12: 数量 指标 | D12: 完成上级下发的图斑核查 | E12: ≥99%
C13: 质量 指标 | D13: 完成上级下发的图斑核查 | E13: ≥99%
C14: 时效 指标 | D14: 费用区间（2020-2022） | E14: ≤3年
B15: 效益指标 | C15: 经济效益指标 | D15: 保障国有资源避免流失的情况 | E15: 好坏
B16: 成本指标 | C16: 经济成本指标 | D16: 技术服务费用、人员经费 | E16: ≤44.42万元
B17: 满意度指标 | C17: 服务对象满意度指标 | D17: 群众满意度 | E17: ≥99%

Sheet 6-7部门预算项目支出绩效目标表—2022年自然资源出让前期工
E1: 表6-7
A2: 部门预算项目支出绩效目标表
D3: （2023年度）
A4: 项目名称 | D4: 2022年自然资源出让前期工作经费
A5: 预算单位 | D5: 盐边县自然资源和规划局
A6: 项目资金(万元) | D6: 年度资金总额： | E6: 41.21
D7: 其中：财政拨款 | E7: 41.21
D8: 其他资金 | E8: 0.00
A9: 总体目标 | B9: 年度目标
B10: 合理规划安排出让土地矿产等自然资源，提升地方财政收入，推动地方经济
A11: 绩效指标 | B11: 一级指标 | C11: 二级 指标 | D11: 三级指标 | E11: 指标值（包含数字及文字描述）
B12: 产出指标 | C12: 数量 指标 | D12: 合理规划安排出让土地矿产 | E12: 合理规划安排出让土地矿产
C13: 质量 指标 | D13: 提升地方财政收入，推动地方经济 | E13: 提升地方财政收入，推动地方经济
C14: 时效 指标 | D14: 费用区间 | E14: ≤3年
B15: 效益指标 | C15: 经济效益指标 | D15: 提升县级非税收入 | E15: 好
B16: 成本指标 | C16: 经济成本指标 | D16: 技术服务费等 | E16: ≤42万元
B17: 满意度指标 | C17: 服务对象满意度指标 | D17: 群众满意度 | E17: ≥99%

Sheet 6-8部门预算项目支出绩效目标表—国土空间生态修复规划编制
E1: 表6-8
A2: 部门预算项目支出绩效目标表
D3: （2023年度）
A4: 项目名称 | D4: 国土空间生态修复规划编制
A5: 预算单位 | D5: 盐边县自然资源和规划局
A6: 项目资金(万元) | D6: 年度资金总额： | E6: 29.95
D7: 其中：财政拨款 | E7: 29.95
D8: 其他资金 | E8: 0.00
A9: 总体目标 | B9: 年度目标
B10: 完成规划编制，并通过审核
A11: 绩效指标 | B11: 一级指标 | C11: 二级 指标 | D11: 三级指标 | E11: 指标值（包含数字及文字描述）
B12: 产出指标 | C12: 数量 指标 | D12: 规划编制报告 | E12: 1个/套
C13: 质量 指标 | D13: 编制规划报告并通过审核 | E13: 编制规划报告并通过审核
C14: 时效 指标 | D14: 完成时间 | E14: 1年
B15: 效益指标 | C15: 可持续发展指标 | D15: 规划方案为后期工作提供参考的情况 | E15: 好
B16: 成本指标 | C16: 经济成本指标 | D16: 项目费用 | E16: ≤29.95万元
B17: 满意度指标 | C17: 服务对象满意度指标 | D17: 使用人满意度 | E17: ≥95%

Sheet 6-9部门预算项目支出绩效目标表—红格南钒钛磁铁矿出让前期工作
E1: 表6-9
A2: 部门预算项目支出绩效目标表
D3: （2023年度）
A4: 项目名称 | D4: 红格南矿区钒钛磁铁矿出让前期工作专项经费
A5: 预算单位 | D5: 盐边县自然资源和规划局
A6: 项目资金(万元) | D6: 年度资金总额： | E6: 199.14
D7: 其中：财政拨款 | E7: 199.14
D8: 其他资金 | E8: 0.00
A9: 总体目标 | B9: 年度目标
B10: 按照矿权出让前期各项工作时间节点顺利推进，为出让提供有效的保障。
A11: 绩效指标 | B11: 一级指标 | C11: 二级 指标 | D11: 三级指标 | E11: 指标值（包含数字及文字描述）
B12: 产出指标 | C12: 数量 指标 | D12: 形成报告数量 | E12: 2个/套
C13: 质量 指标 | D13: 为矿权出让提供有效基础支撑 | E13: 好
C14: 时效 指标 | D14: 完成时限 | E14: 2022年12月31日前
B15: 效益指标 | C15: 经济效益指标 | D15: 增加地方财政收入 | E15: 增加地方财政收入
B16: 成本指标 | C16: 经济成本指标 | D16: 技术服务费及工作经费 | E16: ≤1000万元
B17: 满意度指标 | C17: 服务对象满意度指标 | D17: 服务对象满意度 | E17: ≥95%

Sheet 6-10部门预算项目支出绩效目标表—征地片区综合地价制定工作经
E1: 表6-10
A2: 部门预算项目支出绩效目标表
D3: （2023年度）
A4: 项目名称 | D4: 盐边县征地片区综合地价制定工作经费
A5: 预算单位 | D5: 盐边县自然资源和规划局
A6: 项目资金(万元) | D6: 年度资金总额： | E6: 47.80
D7: 其中：财政拨款 | E7: 47.80
D8: 其他资金 | E8: 0.00
A9: 总体目标 | B9: 年度目标
B10: 调动市场活力，提高收益，推动地方经济
A11: 绩效指标 | B11: 一级指标 | C11: 二级 指标 | D11: 三级指标 | E11: 指标值（包含数字及文字描述）
B12: 产出指标 | C12: 数量 指标 | D12: 矿种数量 | E12: 7种
C13: 质量 指标 | D13: 符合地区需求及市场情况 | E13: 较好
C14: 时效 指标 | D14: 完成时限 | E14: ≤1年
B15: 效益指标 | C15: 经济效益指标 | D15: 为后期矿产资源出让提供支撑情况 | E15: 较好
B16: 成本指标 | C16: 经济成本指标 | D16: 技术服务费 | E16: 47.8万元
B17: 满意度指标 | C17: 服务对象满意度指标 | D17: 使用者满意度 | E17: ≥95%

Sheet 6-11部门预算项目支出绩效目标表—和爱乡土地整理项目
E1: 表6-11
A2: 部门预算项目支出绩效目标表
D3: （2023年度）
A4: 项目名称 | D4: 和爱乡土地整理项目
A5: 预算单位 | D5: 盐边县自然资源和规划局
A6: 项目资金(万元) | D6: 年度资金总额： | E6: 7.80
D7: 其中：财政拨款 | E7: 7.80
D8: 其他资金 | E8: 0.00
A9: 总体目标 | B9: 年度目标
B10: 顺利完成土地整理项目收尾工作，并将项目成果移交乡镇，提升土地产能，促进经济发展，提供群众收入。
A11: 绩效指标 | B11: 一级指标 | C11: 二级 指标 | D11: 三级指标 | E11: 指标值（包含数字及文字描述）
B12: 产出指标 | C12: 数量 指标 | D12: 完成土地整理项目收尾工作 | E12: 完成土地整理项目收尾工作
C13: 质量 指标 | D13: 项目验收达标 | E13: 好
C14: 时效 指标 | D14: 项目预计工期 | E14: ≤1年
B15: 效益指标 | C15: 经济效益指标 | D15: 产出新增耕地指标情况 | E15: 好
B16: 成本指标 | C16: 经济成本指标 | D16: 监理费 | E16: ≤7.8万元
B17: 满意度指标 | C17: 服务对象满意度指标 | D17: 群众满意度 | E17: ≥99%
B18: 成本指标 | C18: 经济成本指标
C19: 社会成本指标
B20: 满意度指标 | C20: 服务对象满意度指标

Sheet 6-12部门预算项目支出绩效目标表—2022年国土空间规划工作
E1: 表6-12
A2: 部门预算项目支出绩效目标表
D3: （2023年度）
A4: 项目名称 | D4: 2022年国土空间规划工作经费
A5: 预算单位 | D5: 盐边县自然资源和规划局
A6: 项目资金(万元) | D6: 年度资金总额： | E6: 39.80
D7: 其中：财政拨款 | E7: 39.80
D8: 其他资金 | E8: 0.00
A9: 总体目标 | B9: 年度目标
B10: 完成国土空间开发保护“一张图”，健全国土空间规划法规政策，提升国土空间治理体系和治理能力现代化水平，基本形成生产空间集约高效、生活空间宜居适度、生态空间山清水秀，安全和谐、富有竞争力和可持续发展的国土空间格局。
A11: 绩效指标 | B11: 一级指标 | C11: 二级 指标 | D11: 三级指标 | E11: 指标值（包含数字及文字描述）
B12: 产出指标 | C12: 数量 指标 | D12: 规划编制成果数量 | E12: ≥2个
C13: 质量 指标 | D13: 提升国土空间治理体系和治理能力现代化水平 | E13: 提升国土空间治理体系和治理能力现代化水平
C14: 时效 指标 | D14: 费用区间 | E14: ≤2年
B15: 效益指标 | C15: 可持续发展指标 | D15: 规划工作为重点工作提供数据支撑情况 | E15: 好
B16: 成本指标 | C16: 经济成本指标 | D16: 技术服务费等 | E16: ≤39.8万元
B17: 满意度指标 | C17: 服务对象满意度指标 | D17: 群众满意度 | E17: ≥99%

Sheet 6-13部门预算项目支出绩效目标表—谜塘村丁家湾滑坡排危除险
E1: 表6-13
A2: 部门预算项目支出绩效目标表
D3: （2023年度）
A4: 项目名称 | D4: 谜塘村丁家湾滑坡排危除险工程
A5: 预算单位 | D5: 盐边县自然资源和规划局
A6: 项目资金(万元) | D6: 年度资金总额： | E6: 6.00
D7: 其中：财政拨款 | E7: 6.00
D8: 其他资金 | E8: 0.00
A9: 总体目标 | B9: 年度目标
B10: 对地质灾害隐患点进行有效治理，保障区域内群众人身、财产安全
A11: 绩效指标 | B11: 一级指标 | C11: 二级 指标 | D11: 三级指标 | E11: 指标值（包含数字及文字描述）
B12: 产出指标 | C12: 数量 指标 | D12: 完成治理工程 | E12: 1个
C13: 质量 指标 | D13: 达到验收标准 | E13: 达到验收标准
C14: 时效 指标 | D14: 完成时限 | E14: 1年
B15: 效益指标 | C15: 生态效益指标 | D15: 隐患点治理情况 | E15: 好
B16: 成本指标 | C16: 经济成本指标 | D16: 项目前期经费 | E16: 6万元
B17: 满意度指标 | C17: 服务对象满意度指标 | D17: 群众满意度 | E17: ≥99%

Sheet 6-14部门预算项目支出绩效目标表—房地一体和建设用地确权
E1: 表6-14
A2: 部门预算项目支出绩效目标表
D3: （2023年度）
A4: 项目名称 | D4: 房地一体和建设用地确权等级颁证
A5: 预算单位 | D5: 盐边县自然资源和规划局
A6: 项目资金(万元) | D6: 年度资金总额： | E6: 50.00
D7: 其中：财政拨款 | E7: 50.00
D8: 其他资金 | E8: 0.00
A9: 总体目标 | B9: 年度目标
B10: 完成各项所有权登记发证工作，建立农村集体土地确权登记发证数据库及管理系统等
A11: 绩效指标 | B11: 一级指标 | C11: 二级 指标 | D11: 三级指标 | E11: 指标值（包含数字及文字描述）
B12: 产出指标 | C12: 数量 指标 | D12: 全县权籍调查 | E12: ≥99%
D13: 外业测绘全县覆盖率 | E13: ≥99%
D14: 坐标系建立 | E14: 2000个
C15: 质量 指标 | D15: 完成各项所有权登记发证工作 | E15: 完成各项所有权登记发证工作
B16: 效益指标 | C16: 可持续发展指标 | D16: 为后期不动产等管理工作提供数据支撑情况 | E16: 好
B17: 成本指标 | C17: 经济成本指标 | D17: 项目实施费用 | E17: ≤50万元
B18: 成本指标 | C18: 服务对象满意度指标 | D18: 使用者满意度 | E18: ≥95%

Sheet 6-15部门预算项目支出绩效目标表—国富丽景公司合同纠纷
E1: 表6-15
A2: 部门预算项目支出绩效目标表
D3: （2023年度）
A4: 项目名称 | D4: 国富丽景公司合同纠纷案件代理费
A5: 预算单位 | D5: 盐边县自然资源和规划局
A6: 项目资金(万元) | D6: 年度资金总额： | E6: 15.00
D7: 其中：财政拨款 | E7: 15.00
D8: 其他资金 | E8: 0.00
A9: 总体目标 | B9: 年度目标
B10: 提高应诉能力，补充法律专业技术力量，维护合法权益，争取官司胜诉，减少财产损失。
A11: 绩效指标 | B11: 一级指标 | C11: 二级 指标 | D11: 三级指标 | E11: 指标值（包含数字及文字描述）
B12: 产出指标 | C12: 数量 指标 | D12: 涉及土地使用权 | E12: 2宗
C13: 质量 指标 | D13: 取得诉讼案件胜诉 | E13: 好
C14: 时效 指标 | D14: 服务期限 | E14: 案件全诉讼期
B15: 效益指标 | C15: 经济效益指标 | D15: 争取胜诉，维护合法权益情况 | E15: 好
B16: 效益指标 | C16: 经济成本指标 | D16: 诉讼代理费 | E16: 胜诉：15万、败诉：5万

Sheet 6-16部门预算项目支出绩效目标表—林权不动产统一登记数据整合
E1: 表6-16
A2: 部门预算项目支出绩效目标表
D3: （2023年度）
A4: 项目名称 | D4: 盐边县林权不动产统一登记数据整合项目
A5: 预算单位 | D5: 盐边县自然资源和规划局
A6: 项目资金(万元) | D6: 年度资金总额： | E6: 99.00
D7: 其中：财政拨款 | E7: 99.00
D8: 其他资金 | E8: 0.00
A9: 总体目标 | B9: 年度目标
B10: 完成县域内现有林权历史数据整合，通过自然资源部数据汇交验收。
A11: 绩效指标 | B11: 一级指标 | C11: 二级 指标 | D11: 三级指标 | E11: 指标值（包含数字及文字描述）
B12: 产出指标 | C12: 数量 指标 | D12: 数据库建设 | E12: ≥55000个
C13: 质量 指标 | D13: 完成县域内现有林权历史数据整合 | E13: 完成县域内现有林权历史数据整合
C14: 时效 指标 | D14: 完成时效 | E14: ≤1年
B15: 效益指标 | C15: 可持续发展指标 | D15: 规范数据管理情况 | E15: 较好
B16: 成本指标 | C16: 经济成本指标 | D16: 技术服务费 | E16: ≤99万元
B17: 满意度指标 | C17: 服务对象满意度指标 | D17: 服务对象满意度 | E17: ≥95%

Sheet 6-17部门预算项目支出绩效目标表—矿业权出让收益基准价制定
E1: 表6-17
A2: 部门预算项目支出绩效目标表
D3: （2023年度）
A4: 项目名称 | D4: 矿业权出让收益市场基准价制定工作资金
A5: 预算单位 | D5: 盐边县自然资源和规划局
A6: 项目资金(万元) | D6: 年度资金总额： | E6: 19.00
D7: 其中：财政拨款 | E7: 19.00
D8: 其他资金 | E8: 0.00
A9: 总体目标 | B9: 年度目标
B10: 全面提升盐边县安全生态屏障质量
A11: 绩效指标 | B11: 一级指标 | C11: 二级 指标 | D11: 三级指标 | E11: 指标值（包含数字及文字描述）
B12: 产出指标 | C12: 数量 指标 | D12: 形成报告数量 | E12: 1个
C13: 质量 指标 | D13: 全面提升盐边县安全生态屏障质量 | E13: 全面提升盐边县安全生态屏障质量
C14: 时效 指标 | D14: 完成时限 | E14: 2023年12月31日前
B15: 效益指标 | C15: 生态效益指标 | D15: 改善盐边县生态系统质量，提高各项生态指标，提高宜居性情况 | E15: 较好
B16: 成本指标 | C16: 经济成本指标 | D16: 编制服务费 | E16: 30万元
B17: 满意度指标 | C17: 服务对象满意度指标 | D17: 服务对象满意度 | E17: ≧95%

Sheet 6-18部门预算项目支出绩效目标表—矿产资源规划编制
E1: 表6-18
A2: 部门预算项目支出绩效目标表
D3: （2023年度）
A4: 项目名称 | D4: 矿产资源规划编制专项经费
A5: 预算单位 | D5: 盐边县自然资源和规划局
A6: 项目资金(万元) | D6: 年度资金总额： | E6: 21.00
D7: 其中：财政拨款 | E7: 21.00
D8: 其他资金 | E8: 0.00
A9: 总体目标 | B9: 年度目标
B10: 完善矿产资源管理，激活矿产资源市场，推动市场经济
A11: 绩效指标 | B11: 一级指标 | C11: 二级 指标 | D11: 三级指标 | E11: 指标值（包含数字及文字描述）
B12: 产出指标 | C12: 数量 指标 | D12: 成果数 | E12: 1套
C13: 质量 指标 | D13: 完善矿产资源管理，激活矿产资源市场 | E13: 完善矿产资源管理，激活矿产资源市场
C14: 时效 指标 | D14: 完成时限 | E14: 1年
B15: 效益指标 | C15: 可持续发展指标 | D15: 为后期矿产资源管理提供数据支撑情况 | E15: 好
B16: 成本指标 | C16: 经济成本指标 | D16: 技术服务费 | E16: ≤32.4万元
B17: 满意度指标 | C17: 服务对象满意度指标 | D17: 群众满意度 | E17: ≥95%

Sheet 7部门整体支出绩效目标表
H1: 表7
A2: 部门整体支出绩效目标表
A3: （2023年度）
A4: 部门名称 | D4: 盐边县自然资源和规划局
A5: 年度主要任务 | B5: 任务名称 | D5: 主要内容
B6: 土地综合整治项目 | D6: 建设规模5500亩，预计新增耕地面积3100亩。
B7: 集体经营性建设用地入市 | D7: 开展试点工作，探索集体经营性建设用地试点执行方法及相关配套政策。
B8: 红格南矿区资源开发前期工作 | D8: 按照原国土资源资源部批复的红格矿区规划，红格南矿区出让后设计生产规模为约1500万吨/年，拟采用露天开采
B9: 重点项目土地保障工作 | D9: 做好四川钒能产业园、中禾宝桑红格项目、红格体育运动中心建设项目等项目自然资源要素保障工作。
B10: 国土空间规划编制 | D10: 全面优化盐边县国土空间布局，促进盐边县社会经济可持续发展，推进生态国土建设，建立空间规划体系，推行“多规合一”并监督实施，优化全县生态、农业、工业、服务业、城镇、乡村、文化开放合作和交通运输等用地布局。
B11: 地质灾害防治 | D11: 认真按照省、市、县关于地质灾害防治工作要求，抓好2022年汛后核查和2023年汛前、汛中排查工作，同时加快推进地质灾害治理工程进度，按时按质完成治理工程。督促各乡镇完成2023年避险搬迁任务申报、实施。
B12: 年度部门整体支出预算 | F12: 资金总额 | G12: 财政拨款 | H12: 其他资金
F13: 3518.64万元 | G13: 3518.64万元
A14: 年度总体目标 | B14: 完成2023年自然资源和规划管理工作目标任务，同时为我县各项专项工作提供有力的基础保障，同时做好国家资源、人民财产的保护工作。
A15: 年度绩效指标 | B15: 一级指标 | C15: 二级指标 | E15: 三级指标 | G15: 指标值 （包含数字及文字描述）
B16: 产出指标 | C16: 数量指标 | E16: 林权数据库建设数量 | G16: ≥55000个
F17: 轮圈数据坐标系建立 | G17: ＝2000个
F18: 形成各项编制报告 | G18: ≥8个
F19: 拟出让矿权数量 | G19: =4宗
F20: 完成地质灾害治理项目数 | G20: ≥10次
F21: 开展全县地质灾害汛期培训次数 | G21: =2次
E22: 开展汛期巡查 | G22: ≥3次
C23: 质量指标 | E23: 各工程项目通过验收率 | G23: ≥95%
F24: 提升地质灾害综合治理能力情况 | G24: 较好
F25: 完成上级下发的图斑核查 | G25: ≥95%
E26: 为项目落地提供用地保障情况 | G26: 较好
C27: 时效指标 | E27: 生态修复规划编制完成时限 | G27: 2023年12月31日前
C28: 成本指标 | E28: 人员经费 | G28: ≤821.02万元
F29: 机关运行经费 | G29: ≤70.93万元
F30: 自然资源规划和管理专项经费 | G30: ≤400万元
B31: 效益指标 | C31: 经济效益指标 | E31: “三公”经费控制率 | G31: ≤100%
C32: 经济效益指标 | E32: 产出新增耕地指标情况 | G32: 较好
C33: 社会效益指标 | E33: 运转保障率 | G33: =100%
C34: 生态效益指标 | E34: 改善盐边县生态系统质量，提高各项生态指标，提高宜居性情况 | G34: 较好
C35: 可持续影响指标 | E35: 减少地质灾害导致的财产、人员损伤，提高地方财政收入情况 | G35: 较好
B36: 满意度指标 | C36: 服务对象满意度指标 | E36: 服务对象满意度指标 | G36: ≥95%
